bitfinex/quotes_ETHUSD_20241223
["timestamp","ask_amount","ask_price","bid_price","bid_amount"]
[1734920189795,3.7982,3237.2,3237.1,7.1e-06]
[1734920190019,3.85134779,3237.2,3237.1,7.1e-06]
[1734920190598,4.40134779,3237.2,3235.4,0.1944]
[1734920190836,3.0,3236.9,3234.7,1.28544204]
[1734920191014,6.89214,3234.0,3233.9,1.48040895]
[1734920191214,6.64271,3233.4,3233.3,2.60762043]
[1734920191414,3.09271,3233.4,3233.3,2.60762043]
[1734920191618,3.14564239,3233.4,3233.3,2.60762043]
[1734920192017,0.05293239,3233.4,3233.1,2.55930649]
[1734920192218,3.09288,3233.3,3233.1,2.55930649]
[1734920192621,9.43388586,3233.2,3233.1,6.49e-06]
[1734920192935,0.82476066,3233.2,3233.1,6.49e-06]
[1734920193339,0.05156066,3233.2,3233.1,6.49e-06]
[1734920193638,0.05156066,3233.2,3231.5,0.78]
[1734920193639,3.09316,3233.0,3231.5,0.78]
[1734920193938,0.04988606,3233.2,3231.5,0.78]
[1734920194231,0.04988606,3233.1,3231.5,0.78]
[1734920194399,0.04216606,3233.1,3231.5,0.78]
[1734920194598,3.09275,3233.4,3231.7,3.0]
[1734920194798,3.09285,3233.3,3231.7,3.0]
[1734920195024,3.14240016,3233.3,3231.7,3.0]
[1734920195229,0.04955016,3233.3,3232.1,3.47144484]
[1734920195431,0.04955016,3233.3,3232.2,3.44097448]
[1734920195597,3.0925,3233.7,3232.2,0.34714448]
[1734920195799,3.09254,3233.6,3232.1,0.37751484]
[1734920196041,3.09291,3233.2,3232.1,0.37751484]
[1734920196341,3.09347,3232.7,3232.1,0.37751484]
[1734920196724,3.09316,3233.0,3232.1,0.37751484]
[1734920196899,0.55,3233.2,3232.1,0.37751484]
[1734920197104,3.09351,3232.6,3232.1,0.37751484]
[1734920197365,3.09322,3232.9,3232.1,0.37751484]
[1734920197516,0.8169,3233.3,3232.1,0.37751484]
[1734920197517,0.04502394,3232.5,3232.1,0.37751484]
[1734920197714,3.09297,3233.2,3232.1,0.37751484]
[1734920197904,0.04466381,3232.4,3232.1,0.37751484]
[1734920198237,3.09352,3232.6,3232.1,0.37751484]
[1734920198434,3.09354,3232.6,3232.1,0.37751484]
[1734920198596,3.09316,3233.0,3232.1,0.37751484]
[1734920199045,3.09367,3232.4,3232.1,0.37751484]
[1734920199256,0.04434955,3232.9,3232.1,0.37751484]
[1734920199465,0.04434955,3232.9,3232.2,3.09384]
[1734920199604,3.09283,3233.3,3232.1,0.37751484]
[1734920199804,0.04104782,3233.2,3232.1,0.37751484]
[1734920200610,0.25,3234.9,3232.5,3.09354]
[1734920200611,3.09201,3234.2,3232.5,3.09354]
[1734920200941,3.09185,3234.4,3232.7,3.09337]
[1734920201155,0.04139512,3234.1,3232.9,3.09312]
[1734920201445,3.09185,3234.4,3233.0,0.8292]
[1734920201744,0.04139512,3234.0,3233.1,3.09298]
[1734920201946,3.09174,3234.5,3233.1,0.392218]
[1734920202109,0.04139512,3233.9,3233.0,0.8292]
[1734920202305,3.09208,3234.1,3233.0,0.8292]
[1734920202505,3.09154,3234.7,3233.0,0.8292]
[1734920202750,0.04219415,3234.0,3233.3,3.09277]
[1734920202917,0.7987,3234.8,3233.4,0.309277]
[1734920203107,0.04219415,3233.9,3233.4,3.09271]
[1734920203309,3.09199,3234.2,3233.0,0.8292]
[1734920203509,0.04225305,3233.8,3233.0,0.8292]
[1734920203757,0.7987,3234.8,3233.0,0.8292]
[1734920203906,0.04225305,3233.7,3233.0,3.92227]
[1734920204110,0.8319,3235.3,3234.2,3.09192]
[1734920204318,4.32786,3235.7,3234.3,0.7623]
[1734920204567,3.09052,3235.7,3234.3,0.7623]
[1734920204724,3.09133,3234.9,3233.7,0.7623]
[1734920204924,3.09191,3234.3,3233.2,0.7623]
[1734920205153,3.09133,3234.9,3233.3,3.0928]
[1734920205328,3.09133,3234.9,3233.4,3.47821]
[1734920205667,3.09099,3235.2,3233.4,0.38551]
[1734920205975,3.8241,3235.5,3233.4,0.38551]
[1734920206110,3.8241,3235.5,3233.5,3.09258]
[1734920206313,3.0914,3234.8,3233.2,3.85513]
[1734920206512,0.8241,3235.5,3233.2,0.7623]
[1734920206742,3.09151,3234.7,3233.3,3.09274]
[1734920207246,3.09151,3234.7,3233.4,3.09271]
[1734920207433,3.09151,3234.7,3233.4,3.478211]
[1734920207846,3.0,3235.2,3233.4,0.385501]
[1734920208024,3.8241,3235.5,3233.4,0.385501]
[1734920208362,3.09167,3234.5,3233.2,0.7623]
[1734920208645,3.09171,3234.5,3233.2,0.7623]
[1734920208864,3.8241,3235.5,3233.2,0.7623]
[1734920209012,0.04244289,3234.4,3233.8,3.0923]
[1734920209212,3.09102,3235.2,3233.4,0.7507]
[1734920209515,0.04246909,3235.1,3233.5,0.384351]
[1734920209818,3.91484,3235.5,3234.3,0.7507]
[1734920210144,0.8241,3235.5,3234.3,0.7507]
[1734920210458,3.09102,3235.2,3234.3,0.7507]
[1734920210658,0.7597,3235.6,3234.3,0.7507]
[1734920210832,3.09082,3235.4,3234.3,0.7507]
[1734920211039,0.7597,3235.6,3234.3,4.84478191]
[1734920211243,3.88556,3236.0,3234.3,4.84482191]
[1734920211482,0.7953,3236.0,3234.3,1.75297191]
[1734920211684,0.04458402,3235.9,3234.6,3.09156]
[1734920211829,3.13493402,3235.9,3234.6,3.09156]
[1734920212034,3.13493402,3235.9,3234.3,1.36869891]
[1734920212035,0.04458402,3235.9,3234.3,1.36869891]
[1734920212462,3.13497402,3235.9,3234.6,3.09155]
[1734920212641,0.04458402,3235.9,3235.0,3.09117]
[1734920212986,3.08998,3236.3,3235.1,0.769]
[1734920213127,0.04498962,3235.8,3235.1,0.769]
[1734920213328,3.09006,3236.2,3235.1,0.769]
[1734920213585,0.04498962,3235.7,3235.1,0.769]
[1734920213735,3.09005,3236.2,3235.1,0.769]
[1734920214084,0.7953,3236.5,3235.1,0.769]
[1734920214283,0.7953,3236.5,3234.4,0.8277]
[1734920214284,3.0911,3235.1,3234.4,0.8277]
[1734920214466,0.8288,3235.5,3233.6,0.8277]
[1734920214666,3.09112,3235.1,3233.7,3.09237]
[1734920214873,0.04519889,3235.0,3233.7,0.49322628]
[1734920215035,3.09112,3235.1,3233.8,3.09232]
[1734920215230,0.04519889,3235.0,3233.9,3.09222]
[1734920215634,0.04519889,3235.0,3234.4,3.09175]
[1734920215869,3.0,3236.5,3234.0,0.8277]
[1734920215870,0.8288,3236.0,3234.0,0.8277]
[1734920216030,3.0888,3237.6,3235.1,3.09107]
[1734920216031,3.08977,3236.5,3235.1,3.09107]
[1734920216254,0.8288,3236.9,3234.9,0.8277]
[1734920216705,3.08947,3236.8,3234.9,0.8277]
[1734920216887,3.09036,3235.9,3234.9,1.4537891]
[1734920217447,3.09004,3236.2,3234.9,0.8277]
[1734920217606,3.09015,3236.1,3234.9,0.8277]
[1734920217808,3.8288,3236.9,3234.9,1.219607]
[1734920218009,3.09012,3236.2,3234.9,4.90382177]
[1734920218302,3.09012,3236.2,3235.0,3.09117]
[1734920218610,3.08984,3236.5,3235.1,3.09108]
[1734920218817,3.09094,3235.3,3234.9,0.8277]
[1734920219017,3.09102,3235.2,3234.3,0.8131]
[1734920219176,3.0909,3235.3,3234.3,0.8131]
[1734920219373,3.09098,3235.3,3234.3,0.8131]
[1734920219865,0.7706,3235.8,3234.3,4.70303518]
[1734920220059,3.09056,3235.7,3234.4,3.09175]
[1734920220254,0.1182568,3235.2,3234.3,1.61122518]
[1734920221004,3.86108,3235.8,3234.3,1.61122518]
[1734920221005,3.09054,3235.7,3234.4,3.09174]
[1734920221213,3.09,3236.3,3234.8,3.09136]
[1734920221214,3.09014,3236.1,3234.8,3.09136]
[1734920221360,0.11836729,3235.6,3234.8,3.09136]
[1734920221558,0.11836729,3235.6,3234.8,3.09138]
[1734920221886,0.8222,3236.3,3234.7,0.8073]
[1734920222214,3.09094,3235.3,3234.2,0.7657]
[1734920222571,0.04363447,3235.2,3234.2,0.7657]
[1734920222971,0.11831276,3235.1,3234.2,1.24988218]
[1734920223613,0.11831276,3235.1,3234.2,0.7657]
[1734920223857,3.96682276,3235.1,3234.2,0.7657]
[1734920224145,0.04337264,3235.0,3234.2,0.7657]
[1734920224341,0.1616854,3235.0,3234.2,0.7657]
[1734920225106,0.11831276,3234.9,3234.2,0.7657]
[1734920225308,0.1616854,3234.9,3234.2,0.7657]
[1734920225835,3.09159,3234.6,3234.2,0.7657]
[1734920226005,0.7551,3234.6,3233.4,0.772]
[1734920226182,0.04326134,3234.5,3233.4,0.772]
[1734920226388,0.04326134,3234.5,3233.6,4.07612177]
[1734920226592,0.1615741,3234.5,3233.7,1.43794171]
[1734920226891,0.11831276,3234.5,3234.4,3.09176]
[1734920227124,0.11831276,3234.5,3234.4,7.54611]
[1734920227328,0.1076128,3234.5,3234.4,7.54611]
[1734920227571,0.1076128,3235.7,3235.1,0.7927]
[1734920227954,0.1076128,3235.7,3235.6,3.09061]
[1734920228250,1.25199078,3236.3,3236.0,0.7927]
[1734920228394,0.806,3237.3,3236.0,0.7927]
[1734920228745,3.08933,3237.0,3236.0,0.7927]
[1734920229294,0.04378994,3236.9,3236.0,4.86882177]
[1734920229497,1.25199078,3237.4,3236.3,3.08987]
[1734920229849,0.04412348,3236.8,3236.1,0.48688218]
[1734920230010,3.08923,3237.1,3236.0,4.86882177]
[1734920230209,3.0888,3237.5,3236.0,4.86882177]
[1734920230416,3.13236973,3237.0,3236.0,0.7927]
[1734920230735,0.04305973,3236.9,3236.0,0.7927]
[1734920230911,3.08949,3236.8,3236.0,0.7927]
[1734920231246,3.08926,3237.1,3236.0,0.7927]
[1734920231540,0.8184,3237.8,3236.0,0.7927]
[1734920231841,0.0430663,3237.0,3236.0,0.7927]
[1734920232044,3.08927,3237.1,3236.0,0.7927]
[1734920232340,0.04300744,3237.0,3236.0,0.7927]
[1734920232849,0.8184,3237.8,3236.0,4.86882177]
[1734920232993,3.08862,3237.7,3236.1,0.79591418]
[1734920233201,0.04305975,3237.7,3236.6,0.7792]
[1734920233543,1.25199078,3238.3,3237.0,4.07612177]
[1734920233756,2.50398157,3238.6,3237.0,4.07612177]
[1734920233757,0.04217623,3237.6,3237.4,3.08886]
[1734920233929,1.25199078,3238.6,3237.1,0.7792]
[1734920234095,1.25199078,3238.6,3237.1,1.32603533]
[1734920234298,0.04217623,3238.5,3237.4,3.08889]
[1734920234497,0.04217623,3238.5,3237.8,3.08847]
[1734920234691,0.04217623,3238.5,3238.1,3.08819]
[1734920235231,0.04217623,3238.5,3237.6,3.89119]
[1734920235393,0.04217623,3238.5,3237.6,0.8025]
[1734920235605,3.08762,3238.8,3237.6,0.8025]
[1734920236034,0.04261443,3238.7,3237.6,0.8025]
[1734920236795,3.08784,3238.6,3237.6,0.8025]
[1734920237098,3.13081403,3238.6,3237.6,0.8025]
[1734920237729,0.04297403,3238.6,3237.6,0.8025]
[1734920237916,3.08805,3238.3,3237.6,0.8025]
[1734920238091,3.08838,3238.0,3237.6,0.8025]
[1734920238295,3.08854,3237.8,3237.1,0.7747]
[1734920238534,0.04288903,3237.9,3237.1,0.7747]
[1734920238744,0.7986,3238.4,3237.1,0.7747]
[1734920238894,3.08807,3238.3,3237.1,0.7747]
[1734920239091,3.13095903,3238.3,3237.1,0.7747]
[1734920239437,0.04288903,3238.3,3237.1,0.7747]
[1734920239649,3.08815,3238.2,3237.1,0.7747]
[1734920239826,0.04288903,3238.3,3237.1,0.7747]
[1734920239993,0.04307881,3238.1,3237.2,3.08907]
[1734920240196,3.08797,3238.4,3237.3,0.386377]
[1734920240396,0.04307881,3238.0,3237.1,0.7747]
[1734920240636,3.08846,3237.9,3237.1,0.7747]
[1734920240830,3.08756,3238.8,3237.1,0.7747]
[1734920240831,3.08852,3237.8,3237.1,0.7747]
[1734920240993,0.04311805,3237.8,3237.1,0.7747]
[1734920241502,3.08757,3238.8,3237.3,3.08891]
[1734920241842,1.25199078,3239.8,3237.8,3.08849]
[1734920241843,3.90242,3239.5,3237.8,3.08849]
[1734920242049,0.04309071,3238.7,3237.6,8.47729302]
[1734920242195,1.25199078,3239.8,3238.5,0.7655]
[1734920242399,4.33862078,3239.8,3238.5,3.85333]
[1734920242628,0.04175103,3239.7,3238.5,0.7655]
[1734920242828,0.04175103,3239.7,3238.7,3.08765]
[1734920243033,3.08634,3240.1,3238.8,3.08755]
[1734920243236,0.04211736,3239.6,3238.5,0.7655]
[1734920243440,3.08559,3240.9,3238.0,0.7761]
[1734920243441,3.08622,3240.2,3238.0,0.7761]
[1734920243599,3.08752,3238.9,3238.0,0.7761]
[1734920244140,0.04211736,3238.8,3238.0,3.86439]
[1734920244433,3.0,3239.8,3238.0,0.7761]
[1734920244641,3.0,3239.0,3237.1,0.7502]
[1734920244949,3.0,3239.0,3236.1,0.7502]
[1734920244950,3.08919,3237.1,3236.1,0.7502]
[1734920245113,3.08935,3237.0,3236.1,0.7502]
[1734920245313,3.08832,3238.0,3236.1,0.7502]
[1734920245639,0.04239206,3236.9,3236.1,0.7502]
[1734920245932,3.08927,3237.1,3236.1,0.7502]
[1734920246355,0.04144346,3237.0,3236.1,0.7502]
[1734920247312,3.08911,3237.2,3236.1,0.7502]
[1734920247814,0.04144346,3237.1,3236.1,0.7502]
[1734920248320,3.08937,3236.9,3236.1,0.7502]
[1734920248521,3.08947,3236.8,3236.1,0.7502]
[1734920248721,3.13040283,3236.8,3236.1,0.7502]
[1734920248921,3.08968,3236.6,3236.1,0.7502]
[1734920249336,0.04097866,3236.5,3236.1,0.7502]
[1734920250652,0.808,3236.4,3234.5,0.7862]
[1734920250811,0.808,3236.4,3234.6,0.48623218]
[1734920251015,3.09043,3235.8,3234.7,0.62602171]
[1734920251637,0.808,3236.4,3234.7,0.62602171]
[1734920251638,0.04086736,3235.7,3234.7,0.62602171]
[1734920251837,3.09142,3234.8,3234.5,0.7862]
[1734920252022,0.7745,3235.6,3233.5,0.774]
[1734920252230,3.09252,3233.6,3233.1,1.8813554]
[1734920252417,3.09252,3233.6,3232.3,4.79201476]
[1734920252418,6.09319,3232.9,3232.6,1.65876208]
[1734920252753,3.0931,3233.0,3232.3,0.01631215]
[1734920252754,0.8142,3232.4,3232.3,0.01631215]
[1734920253131,3.85086755,3232.4,3232.3,0.01631215]
[1734920253529,3.85086755,3232.4,3232.0,3.8313636]
[1734920253530,3.09434,3231.7,3231.6,4.2e-06]
[1734920253729,3.90854,3231.7,3231.6,4.2e-06]
[1734920253934,3.09453,3231.6,3229.9,3.09601]
[1734920254133,3.09453,3231.6,3229.9,3.71824487]
[1734920254658,0.03527619,3231.5,3229.9,3.71824487]
[1734920254844,0.03527619,3231.5,3230.1,3.09587]
[1734920255041,0.03527619,3231.5,3230.6,0.1155771]
[1734920255457,3.09393,3232.2,3230.7,0.7476]
[1734920255762,3.0943,3231.8,3230.7,0.7476]
[1734920255920,3.09437,3231.7,3230.7,0.7476]
[1734920256389,0.03268262,3231.6,3230.7,0.7476]
[1734920256680,3.12716262,3231.6,3230.7,0.7476]
[1734920256880,0.03268262,3231.6,3230.7,0.7476]
[1734920257193,3.09437,3231.7,3230.7,0.7476]
[1734920257682,0.03278778,3231.6,3230.7,0.7476]
[1734920258339,0.03278778,3231.6,3230.6,0.1155771]
[1734920258722,3.09396,3232.1,3230.6,0.1155771]
[1734920259051,3.12734778,3231.5,3230.6,0.1155771]
[1734920259257,3.09456,3231.5,3230.6,0.1155771]
[1734920259803,0.03262352,3231.4,3230.6,0.1155771]
[1734920260777,3.09428,3231.8,3230.6,0.1155771]
[1734920261070,0.03250522,3231.3,3230.6,0.1155771]
[1734920261237,3.09428,3231.8,3230.6,0.1155771]
[1734920261457,4.89032177,3232.3,3230.6,0.1155771]
[1734920261790,0.03250522,3232.2,3230.6,0.1155771]
[1734920262079,3.09419,3231.9,3230.6,0.1155771]
[1734920262578,4.89032177,3232.3,3230.6,0.1155771]
[1734920262579,3.12677522,3231.8,3230.6,0.1155771]
[1734920262786,3.09475,3231.3,3230.6,0.1155771]
[1734920262989,0.03250522,3231.8,3230.6,0.1155771]
[1734920263296,0.03250522,3231.7,3230.6,0.1155771]
[1734920263678,4.89032177,3232.3,3230.7,0.7476]
[1734920263846,0.03139453,3232.2,3231.3,3.09467]
[1734920264201,0.7511,3233.4,3231.5,0.7476]
[1734920264404,3.09266,3233.5,3231.6,0.61858672]
[1734920264694,3.09266,3233.5,3232.0,3.09403]
[1734920265059,0.02922769,3233.4,3232.3,3.09374]
[1734920265262,3.84278,3234.5,3232.9,3.09311]
[1734920265466,3.84278,3234.5,3233.0,3.09306]
[1734920265683,0.02985216,3234.4,3232.9,7.47859277]
[1734920265888,0.02985216,3234.4,3232.9,4.38543277]
[1734920266085,0.02985216,3234.4,3233.0,0.7476]
[1734920266402,0.7615,3235.0,3232.5,7.92729302]
[1734920266403,3.09128,3234.9,3232.5,0.7476]
[1734920266598,0.7615,3234.7,3232.5,0.7476]
[1734920266747,3.09231,3233.9,3232.5,0.7476]
[1734920266947,3.09238,3233.8,3232.5,0.7476]
[1734920267155,3.12305323,3233.8,3232.5,0.7476]
[1734920267347,0.03067323,3233.8,3232.5,1.22997218]
[1734920267563,0.7615,3234.7,3232.5,1.22997218]
[1734920267883,3.85306,3234.7,3232.5,1.22997218]
[1734920268085,0.7615,3234.7,3232.7,3.09335]
[1734920268398,0.7615,3234.7,3232.5,1.22997218]
[1734920268399,3.09166,3234.5,3232.5,1.22997218]
[1734920268596,3.09214,3234.1,3232.5,1.22997218]
[1734920268901,3.12283323,3234.0,3232.5,1.22997218]
[1734920269420,0.03067323,3234.0,3232.6,0.83997439]
[1734920269559,0.03067323,3234.0,3233.3,0.7476]
[1734920269760,0.7615,3234.7,3233.3,0.7476]
[1734920269761,3.09161,3234.6,3233.3,0.7476]
[1734920270297,0.03067323,3234.5,3233.3,0.7476]
[1734920270799,0.03067323,3234.5,3233.3,4.224449]
[1734920271101,0.03067323,3234.5,3233.6,3.0925]
[1734920271300,0.832,3235.2,3233.4,0.62164221]
[1734920271606,0.03249953,3234.4,3232.5,0.48237218]
[1734920271757,3.09211,3234.1,3232.4,4.07612177]
[1734920271962,3.09195,3234.2,3232.3,0.7476]
[1734920272194,3.09241,3233.8,3232.3,0.7476]
[1734920272357,1.45655461,3234.3,3232.3,0.7476]
[1734920272358,3.09212,3234.1,3232.4,4.07612177]
[1734920272556,0.832,3234.3,3232.4,4.07612177]
[1734920272557,0.03264392,3233.7,3232.5,0.48237218]
[1734920272756,0.832,3234.3,3232.5,3.57594218]
[1734920272998,0.832,3234.3,3232.5,3.09357]
[1734920273202,0.03234198,3234.2,3232.3,0.7476]
[1734920273499,3.09263,3233.5,3232.3,0.7476]
[1734920273702,0.03233542,3233.4,3232.3,0.7476]
[1734920274664,3.09274,3233.4,3232.3,0.7476]
[1734920275029,0.62725384,3234.7,3233.3,4.07612177]
[1734920275313,1.87752978,3235.6,3234.3,3.0918]
[1734920275507,1.25168652,3235.4,3234.4,3.09174]
[1734920275817,1.25168652,3235.4,3234.1,3.092]
[1734920276176,1.25168652,3235.4,3233.9,4.82372177]
[1734920276394,3.09112,3235.1,3233.9,4.82372177]
[1734920276912,0.8221,3235.8,3233.9,5.61533495]
[1734920277516,3.09116,3235.1,3233.9,0.7476]
[1734920278366,3.09092,3235.3,3233.9,0.7476]
[1734920279003,3.09092,3235.3,3233.9,3.83982]
[1734920280139,0.773,3235.3,3232.8,4.82372177]
[1734920280297,0.7716,3233.3,3231.9,0.7476]
[1734920281113,0.0307685,3233.2,3231.9,0.7476]
[1734920281485,3.09256,3233.6,3232.2,3.09384]
[1734920281700,0.0307685,3233.5,3232.2,3.09384]
[1734920281932,0.0307685,3233.5,3232.4,3.09367]
[1734920282115,0.0307685,3233.5,3231.9,0.7476]
[1734920282291,3.09284,3233.3,3231.9,3.84166]
[1734920282487,3.09284,3233.3,3231.9,1.431766]
[1734920282726,3.09261,3233.6,3232.2,3.0938]
[1734920283023,3.09261,3233.6,3231.6,7.78958774]
[1734920283024,3.0936,3232.5,3231.2,0.7476]
[1734920283212,3.09361,3232.5,3231.2,0.7476]
[1734920283395,3.09361,3232.5,3231.2,1.131856]
[1734920283596,0.0307685,3232.4,3231.2,0.7476]
[1734920283830,0.0307685,3232.4,3231.2,3.84241]
[1734920284136,0.0307685,3232.4,3231.3,3.09472]
[1734920284317,0.0307685,3232.4,3231.7,3.09428]
[1734920284625,1.40934071,3233.8,3231.8,0.7476]
[1734920284785,2.87e-06,3232.3,3232.2,6.09386]
[1734920285097,1.25168652,3234.1,3232.6,3.09347]
[1734920285423,3.09229,3233.9,3232.6,3.09347]
[1734920285586,0.14211285,3234.0,3232.7,0.7476]
[1734920285782,0.11470741,3234.0,3232.7,0.7476]
[1734920285988,0.02740544,3233.9,3232.7,0.7476]
[1734920286555,3.09255,3233.6,3232.7,0.7476]
[1734920286727,0.7651,3234.4,3232.7,0.7476]
[1734920286891,0.02740544,3233.5,3232.7,0.7476]
[1734920287088,3.09243,3233.7,3232.7,0.7476]
[1734920287289,0.02740544,3233.6,3232.7,0.7476]
[1734920287914,3.09215,3234.0,3232.7,3.84091]
[1734920288109,0.02740544,3233.9,3232.7,4.225001]
[1734920288654,0.02740544,3233.9,3232.7,0.7476]
[1734920288838,3.09243,3233.7,3232.2,0.7476]
[1734920289040,3.09291,3233.2,3232.2,0.7476]
[1734920289349,3.09265,3233.5,3232.2,0.7476]
[1734920289514,0.14247472,3233.1,3232.2,0.7476]
[1734920290138,0.02749085,3233.1,3232.2,0.7476]
[1734920290355,1.24327031,3234.4,3233.5,3.09261]
[1734920290655,1.24327031,3234.4,3234.1,3.09202]
[1734920290815,1.24327031,3234.4,3233.9,0.7476]
[1734920290816,0.11521187,3234.3,3233.9,0.7476]
[1734920291211,0.11521187,3234.3,3233.1,0.62398612]
[1734920291417,3.20712187,3234.3,3233.1,3.09299]
[1734920291619,5.08918031,3234.5,3233.1,3.09299]
[1734920291829,5.08918031,3234.5,3233.2,3.09289]
[1734920292027,5.08918031,3234.5,3233.1,0.309299]
[1734920292028,0.7542,3234.5,3233.1,0.309299]
[1734920292228,0.11530058,3234.4,3232.8,0.60943593]
[1734920292412,0.11530058,3234.4,3232.6,0.7476]
[1734920292624,3.20708058,3234.4,3233.2,3.09285]
[1734920293042,0.11530058,3234.3,3232.7,0.55]
[1734920293250,0.11530058,3234.3,3233.8,3.83992]
[1734920293564,0.11530058,3234.3,3233.8,1.131592]
[1734920293867,0.11530058,3234.8,3234.2,3.09195]
[1734920294457,0.11530058,3235.2,3233.8,0.7476]
[1734920294866,0.11530058,3235.2,3234.1,3.09203]
[1734920295192,0.11530058,3235.1,3233.9,3.09223]
[1734920295394,0.11530058,3235.1,3234.1,3.09205]
[1734920295689,0.11530058,3235.1,3234.1,0.7476]
[1734920295856,0.11530058,3235.7,3234.8,3.09136]
[1734920296188,0.11530058,3235.7,3234.4,3.09176]
[1734920296492,0.11530058,3235.7,3234.9,3.09127]
[1734920296981,0.11530058,3235.7,3235.1,3.09108]
[1734920297185,0.11530058,3235.7,3235.2,3.09093]
[1734920297567,3.09101,3235.2,3234.1,4.07612177]
[1734920297785,3.09107,3235.2,3234.1,4.07612177]
[1734920297944,3.09078,3235.5,3234.1,4.07612177]
[1734920298149,0.7599,3235.6,3234.1,4.07612177]
[1734920298381,0.11530058,3235.4,3234.1,4.07612177]
[1734920298966,0.11530058,3235.4,3234.1,4.86771195]
[1734920299269,0.11530058,3235.3,3234.6,4.07612177]
[1734920299475,0.11530058,3235.3,3234.9,3.09127]
[1734920299755,0.11530058,3235.3,3234.7,0.7476]
[1734920299950,0.11530058,3235.3,3234.7,3.83903]
[1734920300152,0.11530058,3235.3,3234.8,0.79151518]
[1734920300392,0.805,3236.4,3235.1,3.09105]
[1734920300393,3.08995,3236.3,3235.1,3.09105]
[1734920300702,0.805,3236.4,3234.7,0.6976]
[1734920300867,3.20528155,3236.2,3234.8,3.09137]
[1734920301046,3.20528155,3236.2,3234.9,3.09127]
[1734920301245,0.11523155,3236.2,3235.1,3.09109]
[1734920301451,0.11523155,3236.1,3234.9,0.378887]
[1734920301693,0.11523155,3236.1,3235.3,3.09088]
[1734920302190,0.805,3236.4,3235.3,3.09088]
[1734920302392,0.805,3236.4,3235.2,3.0909]
[1734920302687,0.805,3236.4,3234.7,0.6976]
[1734920303048,3.09023,3236.0,3234.7,0.6976]
[1734920303253,3.09048,3235.8,3234.7,0.6976]
[1734920303454,3.09026,3236.0,3234.7,3.78905]
[1734920303687,3.09026,3236.0,3234.8,3.09135]
[1734920303995,0.11505272,3236.3,3235.3,3.09081]
[1734920304194,0.11505272,3236.3,3235.2,0.6976]
[1734920304489,1.25319633,3236.6,3235.8,3.09039]
[1734920304801,1.25319633,3236.6,3235.3,3.0909]
[1734920304802,1.25319633,3236.6,3236.3,3.08992]
[1734920304995,1.25319633,3236.6,3236.4,3.08983]
[1734920305204,1.25319633,3236.6,3236.5,0.6976]
[1734920305406,1.25319633,3237.4,3236.5,0.6976]
[1734920305705,1.25319633,3237.4,3236.6,4.07612177]
[1734920305903,3.08913,3237.2,3236.5,0.6976]
[1734920306106,0.02703118,3237.3,3236.1,4.77372177]
[1734920306420,0.02703118,3237.2,3236.2,0.55]
[1734920306562,0.02703118,3237.2,3236.6,4.07612177]
[1734920306762,1.25319633,3237.4,3237.2,3.08906]
[1734920307058,0.8323,3238.5,3237.2,3.08906]
[1734920307298,0.8323,3238.5,3236.7,0.6976]
[1734920307560,6.17626,3238.2,3236.7,0.6976]
[1734920307777,0.798,3238.3,3236.7,0.6976]
[1734920308316,3.08857,3237.8,3236.2,0.6976]
[1734920308515,3.08892,3237.4,3236.2,0.6976]
[1734920308661,3.08894,3237.4,3236.2,0.6976]
[1734920308859,3.08848,3237.9,3236.2,0.6976]
[1734920309090,3.08881,3237.5,3236.2,3.78762]
[1734920309305,0.02812575,3237.4,3236.2,1.48397418]
[1734920309506,3.08834,3238.0,3236.6,3.08962]
[1734920309713,3.08834,3238.0,3236.3,0.55]
[1734920309714,0.798,3238.1,3236.8,3.08945]
[1734920309874,0.798,3238.1,3236.6,3.08965]
[1734920309875,0.02812575,3237.9,3236.6,3.08965]
[1734920310205,0.02812575,3237.8,3236.6,3.08965]
[1734920310505,0.798,3238.1,3236.6,3.08963]
[1734920310673,3.0884,3238.0,3236.2,1.48397418]
[1734920310857,3.11652575,3238.0,3236.7,3.08954]
[1734920311290,0.02812575,3238.0,3236.7,0.6976]
[1734920311509,0.02812575,3238.0,3237.1,4.07612177]
[1734920311675,1.25319633,3238.7,3237.8,3.0885]
[1734920311876,1.25319633,3238.7,3237.6,4.07612177]
[1734920312215,0.02812575,3238.6,3237.6,4.48373395]
[1734920312374,0.02812575,3238.6,3238.0,3.08831]
[1734920312559,1.25319633,3239.1,3238.1,3.08821]
[1734920313066,0.02812575,3239.0,3238.1,3.08821]
[1734920313265,0.02812575,3239.0,3238.4,3.08793]
[1734920313665,0.7706,3239.8,3238.6,0.6976]
[1734920313866,1.25319633,3240.1,3238.6,4.77372177]
[1734920313867,0.03188389,3239.7,3238.6,4.77372177]
[1734920314065,1.25319633,3240.1,3238.6,5.25109395]
[1734920314367,3.11844791,3240.0,3238.7,3.08758]
[1734920314568,0.03202791,3240.0,3238.6,4.77372177]
[1734920314889,3.11848791,3240.0,3238.7,3.08763]
[1734920315221,0.03202791,3240.0,3239.1,4.07612177]
[1734920315380,0.03202791,3240.0,3239.6,7.16290177]
[1734920315718,0.03202791,3240.0,3239.2,4.19234218]
[1734920315719,0.05,3240.3,3239.2,0.6976]
[1734920315916,0.05,3240.3,3239.3,0.60705571]
[1734920316062,0.03204755,3240.2,3239.3,0.60705571]
[1734920316263,0.05,3240.3,3239.7,3.08664]
[1734920316459,0.05,3240.3,3239.6,4.07612177]
[1734920316691,0.05,3240.3,3239.6,7.16283177]
[1734920316912,0.05,3240.3,3239.6,4.07612177]
[1734920317223,0.05,3240.3,3239.8,3.08658]
[1734920317399,0.05,3240.3,3239.8,3.08659]
[1734920317918,0.05,3240.3,3240.2,0.6976]
[1734920318122,0.05,3240.3,3240.2,1.2476]
[1734920318332,0.05,3240.3,3240.2,9.17489302]
[1734920318634,0.8082,3242.1,3241.2,0.55]
[1734920318933,1.25319633,3242.5,3241.2,3.63526]
[1734920318934,0.03352702,3242.0,3241.2,3.63526]
[1734920319078,1.25319633,3242.5,3241.5,0.55]
[1734920319285,0.03352702,3242.4,3241.7,0.55]